bitfinex-derivatives/quotes_ETHF0:USTF0_20241105
["timestamp","ask_amount","ask_price","bid_price","bid_amount"]
[1730822299813,1.0743,2441.3,2440.6,4.98649405]
[1730822300020,0.4097,2441.2,2440.8,0.40975]
[1730822300318,0.40969,2441.2,2440.7,0.40976]
[1730822300514,0.4097,2441.2,2440.8,0.40976]
[1730822300814,0.40971,2441.2,2440.8,0.40975]
[1730822301216,1.48398,2441.3,2440.9,0.40973]
[1730822301419,40.8,2441.2,2441.1,0.40971]
[1730822301618,4.2435,2441.4,2440.9,3.93549405]
[1730822301822,4.2435,2441.4,2441.3,0.40967]
[1730822302017,4.2435,2441.4,2441.0,1.0254]
[1730822302018,45.0435,2441.4,2441.0,1.0254]
[1730822302213,41.8357,2441.4,2441.3,0.40967]
[1730822302518,1.0357,2441.4,2441.3,0.40967]
[1730822303220,0.9988,2441.7,2441.4,0.40964]
[1730822303419,0.9988,2441.7,2441.4,3.1971458]
[1730822303620,3.2078,2441.8,2441.7,0.40961]
[1730822304125,3.2078,2441.8,2441.1,2.0918]
[1730822304126,0.40963,2441.6,2440.7,0.40977]
[1730822304323,1.012,2441.5,2441.2,0.40968]
[1730822304520,1.012,2441.5,2441.1,0.4097]
[1730822304727,1.0478,2441.4,2441.1,0.4097]
[1730822305124,1.0478,2441.4,2441.0,3.1971458]
[1730822305318,1.0478,2441.4,2441.1,0.4097]
[1730822305519,1.0478,2441.4,2441.0,3.1971458]
[1730822305721,0.40968,2441.3,2440.9,0.40974]
[1730822306219,1.0478,2441.4,2440.7,6.3107458]
[1730822306418,1.45746,2441.4,2441.0,0.40972]
[1730822306628,1.45746,2441.4,2441.0,3.6068558]
[1730822306934,1.0478,2441.4,2441.0,3.1971458]
[1730822307227,0.40968,2441.3,2441.0,3.1971458]
[1730822307427,0.40968,2441.3,2441.0,3.6068658]
[1730822307628,1.45747,2441.4,2441.1,0.4097]
[1730822307929,1.0478,2441.4,2441.0,3.1971458]
[1730822308124,0.40968,2441.3,2441.0,3.6068658]
[1730822308928,1.0478,2441.4,2441.1,0.4097]
[1730822309128,1.45746,2441.4,2441.1,0.4097]
[1730822309333,1.45746,2441.4,2441.0,3.1971458]
[1730822309531,1.0478,2441.4,2441.0,3.1971458]
[1730822309718,0.4097,2441.2,2440.9,0.40973]
[1730822310029,3.6175,2441.2,2440.8,0.40975]
[1730822310222,3.6175,2441.2,2440.9,0.40974]
[1730822310423,3.6175,2441.2,2440.7,5.2640458]
[1730822310424,3.2078,2441.2,2441.0,3.6068558]
[1730822310624,3.2078,2441.2,2440.8,3.1971458]
[1730822310928,3.2078,2441.2,2441.0,0.40971]
[1730822311229,3.2078,2441.2,2440.8,3.1971458]
[1730822311733,3.2078,2441.2,2441.0,3.6068658]
[1730822311925,7.3046,2441.2,2440.8,3.1971458]
[1730822312124,0.40971,2441.1,2440.8,0.40975]
[1730822312320,3.6175,2441.2,2440.7,2.0669]
[1730822312733,3.2078,2441.2,2440.7,2.0669]
[1730822312933,0.40972,2441.1,2440.8,3.1971458]
[1730822313128,0.9875,2441.0,2440.6,6.4049458]
[1730822313433,3.2078,2440.9,2440.1,3.1971458]
[1730822313736,0.40978,2440.7,2440.3,0.40983]
[1730822313929,5.2806,2440.9,2440.2,1.40995]
[1730822313930,40.8,2440.6,2440.2,1.40995]
[1730822314125,40.8,2440.6,2440.3,0.40983]
[1730822314126,44.0078,2440.6,2440.3,0.40983]
[1730822314328,44.41761,2440.6,2440.2,1.40995]
[1730822314540,0.40981,2440.5,2440.2,1.40995]
[1730822314835,0.9607,2440.5,2440.2,1.40995]
[1730822315035,1.37051,2440.5,2440.2,1.40995]
[1730822315532,0.9607,2440.5,2440.1,0.9619]
[1730822315736,3.2078,2440.2,2439.9,0.9673]
[1730822315932,3.2078,2440.2,2439.3,1.06905907]
[1730822316128,5.1344,2440.4,2439.5,0.40997]
[1730822316129,3.61772,2439.9,2439.5,0.40997]
[1730822316336,3.2078,2439.9,2439.4,3.1971458]
[1730822316642,3.2078,2439.9,2439.6,0.40996]
[1730822317139,4.2438,2439.9,2439.6,0.40996]
[1730822317436,4.2438,2439.9,2439.7,0.40994]
[1730822317635,3.2078,2439.9,2439.8,0.40993]
[1730822318435,3.2078,2439.9,2439.7,0.40993]
[1730822319243,3.2078,2439.9,2439.6,3.1971458]
[1730822319438,3.2078,2439.9,2439.8,0.40993]
[1730822320640,3.2078,2439.9,2439.7,0.40993]
[1730822320938,0.41002,2439.3,2438.9,3.61787]
[1730822321239,3.2078,2439.1,2438.6,0.41012]
[1730822321439,0.4101,2438.8,2438.5,3.1971458]
[1730822321741,0.4101,2438.8,2438.4,0.9754]
[1730822322040,3.2078,2438.8,2438.3,0.9786]
[1730822322343,3.2078,2438.8,2438.5,3.6072858]
[1730822322932,3.2078,2438.8,2438.6,0.41012]
[1730822323241,3.2078,2438.8,2438.3,0.9786]
[1730822323242,3.2078,2438.8,2438.7,3.6072558]
[1730822323641,3.2078,2438.8,2438.7,0.41011]
[1730822324845,4.1495,2439.2,2438.7,0.41011]
[1730822325037,4.1495,2439.2,2438.8,0.41008]
[1730822325236,3.2078,2439.2,2438.6,5.05130829]
[1730822325545,3.2078,2439.2,2438.9,0.41007]
[1730822325841,3.2078,2439.2,2438.8,0.41009]
[1730822326436,3.61783,2439.2,2438.6,0.9498]
[1730822326633,0.964,2439.1,2438.8,0.41009]
[1730822326833,3.2078,2439.2,2438.6,4.88881497]
[1730822327238,3.2078,2439.2,2439.0,0.41006]
[1730822327436,3.2078,2439.2,2438.9,0.41007]
[1730822327843,3.2078,2439.2,2438.8,0.41008]
[1730822328348,3.2078,2439.2,2438.9,0.41007]
[1730822328645,3.2078,2439.2,2438.9,0.41006]
[1730822329043,3.2078,2439.2,2438.9,0.41007]
[1730822329639,3.2078,2439.2,2439.0,0.41006]
[1730822329844,3.2078,2439.2,2438.6,4.88881497]
[1730822330037,3.2078,2439.2,2439.1,0.41004]
[1730822330542,7.3078,2439.2,2439.1,0.41004]
[1730822330743,7.3078,2439.2,2439.0,0.41006]
[1730822330943,3.2078,2439.2,2439.1,0.41004]
[1730822331642,7.3078,2439.2,2439.1,0.41004]
[1730822331833,3.2078,2439.2,2439.1,0.41004]
[1730822332435,4.2265,2439.5,2439.1,0.41004]
[1730822332638,4.2265,2439.5,2439.2,0.41001]
[1730822332841,4.2265,2439.5,2439.0,2.0424]
[1730822332842,4.2265,2439.5,2439.3,0.41001]
[1730822333541,4.2265,2439.5,2439.4,0.40999]
[1730822333741,8.3257,2439.5,2439.4,0.40999]
[1730822333942,8.3257,2439.5,2439.3,0.41]
[1730822334134,4.2265,2439.5,2439.3,0.41]
[1730822334335,4.2265,2439.5,2438.4,3.2078]
[1730822334336,4.0992,2439.4,2438.4,3.2078]
[1730822334539,4.2265,2439.5,2438.2,4.96449497]
[1730822334540,3.2078,2439.0,2438.2,3.93901497]
[1730822334743,3.2078,2439.0,2438.9,0.41008]
[1730822335252,7.3078,2439.0,2438.8,0.41008]
[1730822335441,3.2078,2439.0,2438.9,0.41008]
[1730822335645,3.61782,2439.3,2439.0,0.41005]
[1730822335946,3.61781,2439.3,2439.0,0.41005]
[1730822336246,3.2078,2439.3,2439.1,0.41004]
[1730822336442,0.41003,2439.2,2438.9,0.41006]
[1730822336647,0.41003,2439.2,2438.9,0.41007]
[1730822337146,0.41003,2439.2,2438.9,0.41006]
[1730822337345,3.61782,2439.3,2439.0,0.41005]
[1730822337743,3.2078,2439.3,2439.1,0.41004]
[1730822338050,3.2078,2439.3,2438.6,5.3156481]
[1730822338251,0.41003,2439.2,2439.0,0.41006]
[1730822338542,3.2078,2439.3,2439.0,0.41005]
[1730822338945,0.41003,2439.2,2439.0,0.41006]
[1730822339146,3.61782,2439.3,2439.0,0.41006]
[1730822340044,3.61782,2439.3,2439.1,0.41004]
[1730822340248,3.2078,2439.3,2439.2,0.41003]
[1730822340442,3.61782,2439.3,2438.9,1.0157]
[1730822340645,0.41003,2439.2,2439.0,0.41005]
[1730822341157,3.2078,2439.3,2438.6,4.2109]
[1730822341158,4.1,2439.1,2438.6,4.2109]
[1730822341345,3.2078,2439.3,2438.6,4.2109]
[1730822341346,1.0142,2439.2,2438.6,4.2109]
[1730822341645,0.41007,2439.0,2438.8,0.41009]
[1730822342043,0.41005,2439.1,2438.9,0.41008]
[1730822342243,0.41006,2439.0,2438.8,0.41008]
[1730822342443,0.41005,2439.1,2438.8,0.41008]
[1730822342741,0.41003,2439.2,2438.9,0.41006]
[1730822343148,0.41006,2439.1,2438.8,0.41009]
[1730822343346,0.41006,2439.1,2438.8,0.41008]
[1730822343651,3.2078,2439.3,2438.6,1.9981]
[1730822343846,3.2078,2439.0,2438.6,1.0031]
[1730822344050,0.41014,2438.6,2438.3,0.41017]
[1730822344242,0.41013,2438.6,2438.1,1.9406]
[1730822344449,0.41013,2438.6,2438.3,0.41017]
[1730822344744,40.8,2438.5,2438.3,0.41017]
[1730822344952,3.2078,2438.7,2438.1,1.9406]
[1730822345253,3.2078,2438.7,2438.2,0.9511]
[1730822345458,3.2078,2438.7,2438.3,0.41017]
[1730822345459,40.8,2438.6,2438.3,0.41017]
[1730822345759,40.8,2438.6,2438.5,0.41014]
[1730822346357,3.2078,2438.7,2438.5,0.41014]
[1730822346654,3.2078,2438.7,2438.5,0.41013]
[1730822346850,3.2078,2438.7,2438.2,4.15207925]
[1730822346851,3.2078,2438.7,2438.6,0.41013]
[1730822347048,3.2078,2438.7,2438.2,4.15207925]
[1730822347253,3.2078,2438.7,2438.5,0.41013]
[1730822347555,3.2078,2438.7,2438.6,0.41013]
[1730822348646,3.2078,2438.7,2438.6,4.51093]
[1730822349047,3.2078,2438.7,2438.6,6.51973]
[1730822349248,3.2078,2438.7,2438.6,2.41893]
[1730822349651,3.2078,2438.7,2438.6,6.51973]
[1730822350153,3.2078,2438.7,2438.6,2.41893]
[1730822350556,3.2078,2438.7,2438.6,0.41013]
[1730822350857,3.2078,2438.7,2438.5,0.41013]
[1730822351253,3.2078,2438.7,2438.4,2.36225]
[1730822351654,3.2078,2438.7,2438.4,1.9521]
[1730822351958,3.2078,2438.7,2438.6,0.41013]
[1730822352953,0.966,2439.1,2438.9,0.41007]
[1730822353254,0.966,2439.1,2439.0,0.41006]
[1730822353660,3.2078,2439.2,2438.7,4.22407925]
[1730822353958,40.8,2439.3,2439.1,0.41003]
[1730822354263,0.40998,2439.5,2439.1,0.41003]
[1730822354461,0.40998,2439.5,2439.2,0.41002]
[1730822354658,40.8,2439.5,2439.3,0.41]
[1730822355163,3.2078,2439.6,2439.4,0.40999]
[1730822355353,3.2078,2439.6,2439.5,0.40998]
[1730822356771,1.9578,2439.7,2439.6,0.40996]
[1730822356956,3.2078,2439.9,2439.4,3.20097925]
[1730822357263,41.20988,2440.1,2439.7,3.20097925]
[1730822357264,41.7715,2440.1,2439.7,3.20097925]
[1730822357461,41.7715,2440.1,2440.0,0.40989]
[1730822358167,41.7715,2440.1,2439.9,3.61087925]
[1730822358466,0.9715,2440.1,2439.6,3.2078]
[1730822358653,1.38138,2440.1,2439.4,3.20097925]
[1730822358861,0.9715,2440.1,2439.4,3.20097925]
[1730822359160,0.9715,2440.1,2439.9,0.4099]
[1730822359361,0.9715,2440.1,2439.7,3.20097925]
[1730822359560,1.38138,2440.1,2439.7,3.61090925]
[1730822359761,0.9715,2440.1,2439.8,0.40992]
[1730822360361,1.38138,2440.1,2439.7,3.61090925]
[1730822360555,0.9715,2440.1,2439.7,3.20097925]
[1730822360766,1.38139,2440.1,2439.7,3.61091925]
[1730822361165,0.9715,2440.1,2439.7,3.20097925]
[1730822361363,0.9715,2440.1,2439.8,0.40992]
[1730822362464,1.38138,2440.1,2439.8,0.40992]
[1730822362667,1.38139,2440.1,2439.8,0.40992]
[1730822362870,0.9715,2440.1,2439.7,3.20097925]
[1730822363069,0.9715,2440.1,2439.9,0.4099]
[1730822363374,0.9715,2440.1,2439.7,3.20097925]
[1730822363563,1.38138,2440.1,2439.8,0.40992]
[1730822363764,0.9715,2440.1,2439.7,3.20097925]
[1730822364072,3.2078,2440.2,2440.1,0.40988]
[1730822364267,2.62446018,2441.0,2440.1,0.40988]
[1730822364268,0.9524,2440.6,2440.5,0.40981]
[1730822364664,1.0385,2440.8,2440.7,0.40977]
[1730822365268,3.2078,2440.9,2440.8,0.40976]
[1730822365471,3.2078,2440.9,2440.5,2.8892]
[1730822365674,3.2078,2440.9,2440.7,0.40976]
[1730822366876,3.2078,2440.9,2440.8,0.40976]
[1730822367076,3.2078,2440.9,2440.7,0.40977]
[1730822367569,3.2078,2440.9,2440.5,2.8892]
[1730822367767,3.61754,2440.9,2440.6,0.40978]
[1730822368075,3.2078,2440.9,2440.1,3.36102337]
[1730822368267,3.2078,2440.9,2440.4,3.20097925]
[1730822368668,3.2078,2440.9,2440.1,6.15667925]
[1730822368970,1.9909,2441.1,2440.1,1.40916]
[1730822368971,0.40983,2440.4,2440.1,1.40916]
[1730822369176,0.9494,2440.3,2440.2,0.40986]
[1730822369968,0.9494,2440.3,2440.1,1.40916]
[1730822370174,0.40987,2440.2,2439.9,0.4099]
[1730822370368,4.56705,2440.3,2439.9,0.4099]
[1730822370568,41.20986,2440.2,2439.9,0.4099]
[1730822370763,40.8,2440.2,2440.1,3.61085925]
[1730822371775,40.8,2440.2,2440.0,0.40988]
[1730822371973,40.8,2440.2,2439.8,3.20097925]
[1730822372273,41.20987,2440.2,2439.9,0.40991]
[1730822372579,41.20987,2440.2,2439.9,0.4099]
[1730822372879,41.20987,2440.2,2439.8,3.20097925]
[1730822372880,40.8,2440.2,2439.8,3.20097925]
[1730822373181,40.8,2440.2,2440.1,0.40988]
[1730822373875,40.8,2440.2,2439.8,3.20097925]
[1730822374078,40.8,2440.2,2440.0,0.40989]
[1730822374673,3.61761,2440.5,2440.2,0.40985]
[1730822375176,0.993,2440.4,2440.2,0.40985]
[1730822375381,0.993,2440.4,2440.3,0.40984]
[1730822376374,3.2078,2440.8,2440.3,7.29857925]
[1730822376576,3.61756,2440.8,2440.5,0.40979]
[1730822376881,0.993,2440.7,2440.6,3.61076925]
[1730822377073,0.993,2440.7,2440.6,3.20097925]
[1730822377275,0.993,2440.7,2440.6,0.40979]
[1730822377676,44.0078,2440.8,2440.6,3.20097925]
[1730822377872,1.40702,2441.1,2440.8,0.40975]
[1730822378071,0.9973,2441.1,2440.6,3.20097925]
[1730822378272,41.20973,2441.0,2440.7,0.40977]
[1730822378476,3.2078,2440.9,2440.8,0.40975]
[1730822379479,3.2078,2441.2,2440.8,7.29777925]
[1730822379676,3.2078,2441.5,2441.1,3.20097925]
[1730822379881,3.2078,2441.5,2441.3,0.40966]
[1730822380585,3.61744,2441.5,2441.2,0.40968]
[1730822380790,3.61744,2441.5,2441.3,0.40967]
[1730822380791,3.2078,2441.5,2441.3,0.40967]
[1730822381087,3.2078,2441.5,2441.1,3.20097925]
[1730822381277,3.2078,2441.5,2441.4,0.40966]
[1730822381680,3.2078,2441.5,2441.3,0.40967]
[1730822381989,3.2078,2441.5,2441.3,0.40966]
[1730822382684,3.2078,2441.5,2441.2,0.9689]
[1730822383288,3.2078,2441.5,2441.3,0.40966]
[1730822383788,3.2078,2441.5,2441.1,3.20097925]
[1730822384088,3.2078,2441.5,2441.1,0.4097]
[1730822384389,0.40967,2441.4,2441.1,0.4097]
[1730822385583,3.2078,2441.2,2441.0,0.40971]
[1730822386089,3.2078,2441.2,2440.9,3.20097925]
[1730822386289,3.2078,2441.2,2441.0,0.40971]
[1730822386484,3.61749,2441.2,2441.0,0.40971]
[1730822386686,3.2078,2441.2,2440.9,3.20097925]
[1730822386982,0.40972,2441.1,2440.8,0.40975]
[1730822387183,0.9488,2441.0,2440.8,0.40975]
[1730822387390,0.9488,2441.0,2440.9,0.40974]
[1730822388887,0.9488,2441.0,2440.9,3.61071925]
[1730822389090,3.2078,2441.2,2441.1,0.40971]
[1730822389296,3.2078,2441.2,2441.1,3.61068925]
[1730822390385,0.40967,2441.4,2441.1,0.4097]
[1730822390586,0.40967,2441.4,2441.2,0.40969]
[1730822390785,3.2078,2441.5,2441.0,0.9613]
[1730822390992,3.2078,2441.5,2441.3,0.40967]
[1730822391192,3.2078,2441.5,2441.2,3.20097925]
[1730822391193,3.2078,2441.5,2441.2,3.61066925]
[1730822391496,3.2078,2441.5,2441.2,3.61065925]
[1730822391497,3.61745,2441.5,2441.2,3.61065925]
[1730822391694,0.40966,2441.4,2441.2,3.61065925]
[1730822392190,0.40966,2441.4,2441.2,3.20097925]
[1730822392896,3.2078,2441.5,2441.2,3.20097925]
[1730822393194,0.40966,2441.4,2441.2,3.61066925]
[1730822393396,0.40966,2441.4,2441.2,3.20097925]
[1730822394090,3.2078,2441.5,2441.2,3.20097925]
[1730822394801,0.40967,2441.3,2441.2,3.20097925]
[1730822396392,3.2078,2441.5,2441.2,3.20097925]
[1730822396600,0.40967,2441.3,2441.2,3.20097925]
[1730822396804,0.40967,2441.4,2441.2,3.61065925]
[1730822397005,7.3038,2441.5,2441.0,0.9613]
[1730822397197,3.2078,2441.2,2441.0,0.9613]
[1730822397398,3.6175,2441.2,2441.0,1.37102]
[1730822397597,3.6175,2441.2,2441.0,1.37101]
[1730822397794,3.2078,2441.2,2440.9,3.20097925]
[1730822398099,3.2078,2441.5,2441.1,3.20097925]
[1730822398298,3.2078,2441.5,2441.4,0.40966]
[1730822398598,3.2078,2441.5,2441.3,0.40966]
[1730822398999,3.2078,2441.8,2441.4,3.20097925]
[1730822399191,3.14935222,2442.7,2442.2,0.40952]
[1730822399192,5.83226018,2442.5,2442.2,0.40952]
[1730822399395,5.83226018,2442.5,2442.2,3.61049925]
[1730822399396,0.9483,2442.4,2442.2,3.61049925]
[1730822399702,0.9483,2442.4,2442.2,3.20097925]
[1730822400497,0.9483,2442.4,2442.0,3.20097925]
[1730822400498,5.0427,2442.4,2442.0,3.20097925]
[1730822401101,5.0427,2442.4,2441.8,0.9585]
[1730822401406,1.35779,2442.4,2442.0,0.40954]
[1730822401597,0.9483,2442.4,2441.8,0.9585]
[1730822401902,4.5656,2442.4,2442.0,0.40955]
[1730822402304,4.1561,2442.4,2442.1,0.40954]
[1730822402806,4.1561,2442.4,2441.8,0.9585]
[1730822404403,4.1561,2442.4,2442.1,0.40953]
[1730822404604,4.1561,2442.4,2441.8,0.9585]
[1730822404814,0.40952,2442.3,2441.9,0.40956]
[1730822405203,40.8,2442.2,2442.0,0.40955]
[1730822405604,40.8,2442.2,2442.1,0.40954]
[1730822406114,40.8,2442.2,2442.0,0.40955]
[1730822406411,40.8,2442.2,2442.1,0.40954]
[1730822406610,40.8,2442.2,2441.8,0.9585]
[1730822406915,41.20953,2442.2,2441.9,0.40957]
[1730822407211,40.8,2442.2,2442.0,0.40955]
[1730822407616,40.8,2442.2,2441.9,0.40957]
[1730822407813,0.40955,2442.1,2441.8,1.36809]
[1730822408011,0.9542,2442.1,2441.8,0.9585]
[1730822408215,0.40956,2442.0,2441.8,0.9585]
[1730822408419,0.9542,2442.1,2441.8,0.9585]
[1730822408619,1.36375,2442.1,2441.8,1.36809]
[1730822409019,0.9542,2442.1,2441.8,0.9585]
[1730822409225,40.8,2442.2,2442.1,0.40954]
[1730822411828,3.2078,2442.7,2442.6,0.40944]
[1730822412229,0.9115,2443.2,2442.3,2.094]
[1730822412421,0.9115,2443.2,2443.1,0.40937]
[1730822412621,3.2078,2443.3,2443.1,0.40937]
[1730822412933,40.8,2443.2,2443.1,0.40937]
[1730822413327,3.2078,2443.6,2442.9,3.2078]
[1730822413523,1.36244,2443.4,2442.9,0.40939]
[1730822413825,40.8,2443.3,2442.7,1.9031]
[1730822414231,40.8,2443.3,2442.8,0.40942]
[1730822414428,40.8,2443.3,2442.9,0.9406]
[1730822415138,40.8,2443.3,2443.1,0.40937]
[1730822415438,40.8,2443.3,2443.2,0.40936]
[1730822415921,44.41714,2443.3,2442.9,0.9406]
[1730822416125,44.0078,2443.3,2442.9,0.9406]
[1730822416331,44.0078,2443.3,2443.1,0.40937]
[1730822416729,40.8,2443.3,2443.1,0.40937]
[1730822417127,40.8,2443.3,2443.2,0.40936]
[1730822419625,3.2078,2443.6,2443.2,4.0928]
[1730822419934,3.2078,2443.6,2443.4,0.40931]
[1730822420235,3.2078,2443.6,2443.3,0.9818]
[1730822420236,3.2078,2444.2,2443.3,3.0758]
[1730822420432,3.2078,2444.3,2443.8,3.2078]
[1730822420633,3.59834744,2444.5,2443.5,4.1749]
[1730822420940,40.8,2444.3,2444.0,0.40921]
[1730822421139,40.8,2444.3,2443.6,1.02323]
[1730822421334,40.8,2444.3,2444.2,0.40919]
[1730822421635,3.59834744,2444.5,2444.2,0.40919]
[1730822421839,0.9697,2444.5,2444.3,0.40917]
[1730822422031,0.9697,2444.5,2443.9,0.9276]
[1730822422226,0.9697,2444.5,2444.3,0.40916]
[1730822422227,41.7697,2444.5,2444.3,0.40916]
[1730822422632,3.2078,2444.6,2444.4,0.40915]
[1730822422835,3.2078,2444.6,2444.5,0.40914]
[1730822423037,3.2078,2444.6,2444.4,0.40915]
[1730822423229,44.0078,2444.6,2444.4,0.40915]
[1730822423430,44.0078,2444.6,2444.1,0.9724]
[1730822424043,0.40915,2444.5,2444.1,0.4092]
[1730822424233,44.0078,2444.6,2443.9,0.9276]
[1730822424541,0.9737,2444.4,2443.9,0.9276]
[1730822424842,0.9737,2444.4,2444.1,0.40919]
[1730822425231,0.40917,2444.3,2443.9,1.33683]
[1730822425440,0.40917,2444.3,2443.9,0.9276]
[1730822425636,1.38286,2444.4,2444.0,0.40922]
[1730822425838,0.40918,2444.3,2443.9,1.33683]
[1730822426043,0.40919,2444.2,2443.9,0.9276]
[1730822426341,0.9591,2444.2,2443.9,1.33683]
[1730822426638,0.9591,2444.2,2444.1,3.19370926]
[1730822426942,0.9591,2444.2,2444.1,3.60290926]
[1730822427444,0.9737,2444.4,2444.2,0.40919]
[1730822427838,0.9737,2444.4,2444.1,3.60289926]
[1730822428038,0.9737,2444.4,2444.1,3.19370926]
[1730822428239,0.9737,2444.4,2444.2,0.40918]
[1730822428841,0.9737,2444.4,2444.1,3.19370926]
[1730822429036,0.9737,2444.4,2444.3,0.40917]
[1730822429443,5.0649,2444.4,2443.8,3.2078]
[1730822429642,3.2078,2444.0,2443.9,3.19370926]
[1730822429949,3.2078,2444.0,2443.7,3.19370926]
[1730822430245,0.40926,2443.8,2443.7,3.19370926]
[1730822430443,4.092,2443.8,2443.5,3.19370926]
[1730822430645,1.02299,2444.2,2443.5,0.19790926]
[1730822430646,3.61709,2443.6,2443.5,0.19790926]
[1730822430849,0.40931,2443.5,2443.4,3.19370926]
[1730822431233,4.50211,2443.5,2443.4,3.19370926]
[1730822431444,4.50211,2443.5,2443.1,3.93242824]
[1730822431445,0.40936,2443.2,2443.1,3.93242824]
[1730822431642,3.61715,2443.3,2443.1,3.93242824]
[1730822431839,3.2078,2443.3,2443.1,3.93242824]
[1730822432445,0.40936,2443.2,2443.1,3.93242824]
[1730822432849,4.50216,2443.2,2443.1,3.93242824]
[1730822433242,0.40936,2443.2,2443.1,3.93242824]
[1730822433547,0.40936,2443.2,2442.9,3.93242824]
[1730822433548,4.0928,2443.2,2442.9,3.93242824]
[1730822433744,0.40936,2443.2,2442.9,4.21892824]
[1730822434341,3.2078,2443.3,2443.1,3.93242824]
[1730822434547,3.61715,2443.3,2443.1,3.93242824]
[1730822434744,3.2078,2443.3,2443.1,3.93242824]
[1730822434953,0.40936,2443.2,2443.1,3.93242824]
[1730822435140,0.40939,2443.0,2442.9,0.2865]
[1730822435342,0.40952,2442.2,2442.1,3.93242824]
[1730822435542,0.40951,2442.3,2442.1,3.93242824]
[1730822435746,3.2078,2442.4,2442.1,4.34196824]
[1730822435747,3.6173,2442.4,2442.1,4.34196824]
[1730822435946,0.40952,2442.2,2442.1,3.93242824]
[1730822436254,40.8,2442.3,2442.1,3.93242824]
[1730822436455,41.20951,2442.3,2442.1,3.93242824]
[1730822436642,40.8,2442.3,2442.1,3.93242824]
[1730822437648,41.20951,2442.3,2442.1,3.93242824]
[1730822437847,40.8,2442.3,2442.1,3.93242824]
[1730822438248,0.2627,2442.9,2442.1,7.14022824]
[1730822438550,0.67212,2442.9,2442.8,3.93242824]
[1730822438756,41.47212,2442.9,2442.8,3.93242824]
[1730822438951,45.1563,2442.9,2442.8,3.93242824]
[1730822439157,3.61719,2443.1,2442.8,3.93242824]
[1730822439357,3.2078,2443.1,2442.8,3.93242824]
[1730822440057,3.2078,2443.1,2442.9,0.4094]
[1730822440556,3.2078,2443.1,2442.8,4.34184824]
[1730822440762,3.2078,2443.1,2442.8,3.93242824]
[1730822441055,0.4094,2443.0,2442.8,3.93242824]
[1730822441759,3.2078,2443.1,2442.8,3.93242824]
[1730822441760,0.40941,2442.9,2442.8,3.93242824]
[1730822441955,4.0936,2443.0,2442.3,3.93242824]
[1730822442155,0.40949,2442.4,2442.3,3.93242824]
[1730822442352,0.40948,2442.5,2442.3,3.93242824]
[1730822442556,0.40949,2442.4,2442.3,3.93242824]
[1730822443261,4.50389,2442.4,2442.3,3.93242824]
[1730822443964,4.0944,2442.4,2442.0,4.21902824]
[1730822444162,0.40951,2442.3,2442.0,4.21902824]
[1730822444557,40.8,2442.2,2442.0,4.21902824]
[1730822444858,40.8,2442.2,2442.0,4.62857824]
[1730822445059,40.8,2442.2,2442.0,3.93242824]
[1730822445260,44.8952,2442.2,2441.8,3.2078]
[1730822445469,4.0952,2442.1,2441.6,3.93242824]
[1730822445765,44.0078,2442.2,2441.5,0.2867]
[1730822445965,0.40962,2441.6,2441.5,0.2867]
[1730822446355,4.096,2441.6,2441.3,3.93242824]
[1730822446560,0.40964,2441.5,2441.3,3.93242824]
[1730822446761,0.40966,2441.4,2441.3,3.93242824]
[1730822447157,4.096,2441.4,2441.1,0.2867]
[1730822447366,3.61743,2441.6,2441.2,0.40969]
[1730822447672,3.2078,2441.6,2441.1,0.2867]
[1730822448059,0.40966,2441.4,2441.1,0.6964]
[1730822448270,0.40968,2441.3,2441.1,0.2867]
[1730822448671,0.40967,2441.4,2441.0,4.34213824]
[1730822448878,0.40965,2441.5,2441.1,0.4097]
[1730822449178,3.2078,2441.6,2441.0,3.93242824]
[1730822449489,1.02395,2441.9,2440.9,1.8529]
[1730822449490,0.40969,2441.2,2441.1,0.2867]
[1730822449779,0.40969,2441.2,2440.8,4.34216824]
[1730822449973,0.40971,2441.2,2440.8,3.93242824]
[1730822450181,40.8,2441.1,2440.8,3.93242824]
[1730822450379,0.40974,2441.0,2440.8,3.93242824]
[1730822450570,0.40974,2441.0,2440.9,0.2867]
[1730822450875,0.40974,2441.0,2440.8,3.93242824]
[1730822451079,41.20971,2441.1,2440.8,3.93242824]
[1730822451271,0.40974,2440.9,2440.8,3.93242824]
[1730822451575,0.12304,2440.9,2440.8,3.93242824]
[1730822451778,40.8,2441.1,2440.8,3.93242824]
[1730822452188,40.8,2441.1,2440.5,3.93242824]
[1730822452189,7.3046,2441.0,2440.5,3.93242824]
[1730822452480,0.40977,2440.7,2440.6,0.2868]
[1730822452776,3.2078,2441.0,2440.5,3.93242824]
[1730822453173,0.40979,2440.6,2440.5,3.93242824]
[1730822453577,4.5074,2440.6,2440.4,3.2078]
[1730822453767,0.4098,2440.6,2440.4,3.2078]
[1730822453968,0.40981,2440.5,2440.4,3.2078]
[1730822455480,3.2078,2441.0,2440.4,3.2078]
[1730822455674,0.4098,2440.6,2440.4,3.2078]
[1730822455880,0.40981,2440.5,2440.4,3.2078]
[1730822456067,0.4098,2440.6,2440.4,3.2078]
[1730822456275,3.2078,2441.0,2440.4,3.2078]
[1730822456472,0.40981,2440.5,2440.4,3.2078]
[1730822456672,3.2078,2441.0,2440.4,3.2078]
[1730822457176,0.40979,2440.7,2440.4,7.14022824]
[1730822457388,0.4098,2440.6,2440.4,7.14022824]
[1730822459183,0.40977,2440.8,2440.4,7.55004824]
[1730822459486,3.2078,2441.0,2440.4,7.14022824]
[1730822459673,0.40978,2440.7,2440.4,7.55003824]
[1730822460179,3.2078,2441.0,2440.4,7.14022824]